Cogmind - Beta 16 @@@ ROGUE MODE // 2026.01.11 @ 15:44:19 Player: Lunishko Result: Destroyed by P-80 Master with Gamma Rifle Performance ------------- Evolutions (9) 4500 Regions Visited (18) 3600 Robots Destroyed (58) 290 Value Destroyed (1449) 1449 Prototype IDs (36) 720 Alien Tech Used (0) 0 Bonus (518) 518 TOTAL SCORE: 11077 Bonus ------- Follower Combat Kills 218 Aligned with FarCom 300 Cogmind --------- Core Integrity 0/1600 Matter 68/300 Energy 42/100 System Corruption 12% Temperature Cool (2) Movement Walking (75) Location -1/Command Parts ------- > --- POWER (5) -------- (None) > --- PROPULSION (9) --- Advanced VSS Leg Heavy Shield Leg > --- UTILITY (9) ------ (None) > --- WEAPON (2) ------- Plasma Lance > --- INVENTORY (5) ---- Micro-nuke Launcher Peak State ------------ > --- POWER ------------ Nuclear Core Nuclear Core Nuclear Core Nuclear Core Light Antimatter Reactor > --- PROPULSION ------- Improved VTOL Module Improved VTOL Module Nuclear Pulse Array Field Propulsion Array Impulse Thruster Array Improved Q-thruster > --- UTILITY ---------- Lightpack 2.0 Trap Scanner ECM Suite Advanced ECM Suite Advanced Cloaking Device Improved Light Armor Plating > --- WEAPON ----------- Axe > --- INVENTORY -------- Fusion Compressor Armored Treads Armored Treads Armored Treads Armored Treads Biometal Heavy Treads Biometal Heavy Treads Advanced VSS Leg Biometal Leg Biometal Leg Biometal Leg Biometal Leg Centrium Leg Centrium Leg Centrium Leg Centrium Leg Heavy Shield Leg Field Propulsion Array ECM Suite Hardened Medium Armor Plating Enhanced Quantum Rifle Compact HERF Cannon Compact HERF Cannon Enhanced Nova Cannon Advanced Assault Cannon Advanced Assault Cannon Advanced EMP Blaster Missile Launcher Smartbomb Launcher Powered Hammer Axe [Rating: 155] Favorites ----------- Power Nuclear Core Engine Light Ion Engine Power Core Nuclear Core Reactor Light Antimatter Reactor Propulsion Improved VTOL Module Treads Light Treads Leg Heavy Shield Leg Flight Unit Improved VTOL Module Utility ECM Suite Device ECM Suite Storage Lightpack 2.0 Processor Improved Targeting Computer Protection Hardened Medium Armor Plating Weapon Axe Energy Gun EM Pulse Gun Energy Cannon Cooled Plasma Cannon Ballistic Gun Assault Rifle Ballistic Cannon Advanced Assault Cannon Launcher Rocket Launcher Slashing Weapon Axe Piercing Weapon Plasma Lance Build | -11 -10 -10 -10 -9 -8 -8 -7 -7 -7 -6 -6 -6 -5 -4 -3 -2 -1 -1 ------- Run | Yrd Mat Min Exi Min Mat Sto Fac Was Fac Fac Low Low Fac Fac Res Res Acc Com Slots Evolved 18 | . . . . . 4 . 2 . . 2 . . 2 2 2 2 2 . Power 4 | . . . . . 1 . . . . . . . 1 . 1 1 . . Propulsion 7 | . . . . . 1 . 1 . . 2 . . 1 . . 1 1 . Utility 7 | . . . . . 2 . 1 . . . . . . 2 1 . 1 . Weapon . | . . . . . . . . . . . . . . . . . . . Parts Attached 82 | 6 1 . . . 7 29 4 3 7 5 . . . 6 2 2 7 3 Power 18 | 1 . . . . 3 4 1 . 4 3 . . . 1 1 . . . Engine 5 | 1 . . . . 1 2 . . 1 . . . . . . . . . Core 12 | . . . . . 2 2 1 . 3 3 . . . . 1 . . . Reactor 1 | . . . . . . . . . . . . . . 1 . . . . Propulsion 24 | 2 . . . . . 5 3 2 1 2 . . . 2 . 1 4 2 Treads 9 | 2 . . . . . 4 3 . . . . . . . . . . . Leg 3 | . . . . . . . . . . . . . . 1 . . . 2 Wheel . | . . . . . . . . . . . . . . . . . . . Hover . | . . . . . . . . . . . . . . . . . . . Flight 12 | . . . . . . 1 . 2 1 2 . . . 1 . 1 4 . Utility 16 | 1 1 . . . 2 2 . 1 2 . . . . 3 1 1 2 . Device 10 | . 1 . . . 1 . . . 2 . . . . 3 1 1 1 . Storage 2 | 1 . . . . 1 . . . . . . . . . . . . . Processor 1 | . . . . . . . . 1 . . . . . . . . . . Hackware . | . . . . . . . . . . . . . . . . . . . Protection 3 | . . . . . . 2 . . . . . . . . . . 1 . Artifact . | . . . . . . . . . . . . . . . . . . . Weapon 24 | 2 . . . . 2 18 . . . . . . . . . . 1 1 Energy Gun 4 | 1 . . . . . 3 . . . . . . . . . . . . Energy Cannon 1 | . . . . . . 1 . . . . . . . . . . . . Ballistic Gun 7 | 1 . . . . . 6 . . . . . . . . . . . . Ballistic Cannon 3 | . . . . . . 3 . . . . . . . . . . . . Launcher 5 | . . . . . 2 2 . . . . . . . . . . 1 . Special Weapon . | . . . . . . . . . . . . . . . . . . . Impact Weapon . | . . . . . . . . . . . . . . . . . . . Slashing Weapon 3 | . . . . . . 3 . . . . . . . . . . . . Piercing Weapon 1 | . . . . . . . . . . . . . . . . . . 1 Special Melee Weapon . | . . . . . . . . . . . . . . . . . . . Unidentified Prototypes 13 | . . . . . 1 9 . . . 1 . . . . . . 1 1 Parts Lost 38 | . . . . . . 7 . 1 1 . . . . . 2 . 27 . Power 10 | . . . . . . 4 . . 1 . . . . . . . 5 . Propulsion 17 | . . . . . . 2 . 1 . . . . . . 2 . 12 . Utility 7 | . . . . . . . . . . . . . . . . . 7 . Weapon 4 | . . . . . . 1 . . . . . . . . . . 3 . Highest Loss Streak 18 | . . . . . . 2 . 1 1 . . . . . 1 . 18 . To Critical Strikes . | . . . . . . . . . . . . . . . . . . . Average Backups 25 | . 1 2 3 4 20 35 34 36 37 37 38 39 39 37 37 36 31 . Power 3 | . . . 1 1 2 5 4 6 5 5 6 6 6 4 4 3 2 . Propulsion 8 | . . . . . . 5 16 15 16 16 16 16 16 16 16 16 15 . Utility 3 | . . . . 1 2 5 5 4 5 5 5 5 5 4 4 4 2 . Weapon 10 | . 1 2 2 2 14 19 9 9 10 11 11 12 12 12 12 12 10 . Tool/Special . | . . . . . . . . . . . . . . . . . . . Unused Backups 65 | . . . . . 1 15 3 . 1 1 1 . . 8 . 1 33 1 Power 4 | . . . . . . 2 . . . . . . . 2 . . . . Propulsion 29 | . . . . . . 4 2 . 1 1 . . . 2 . 1 18 . Utility 10 | . . . . . . 3 . . . . 1 . . 2 . . 4 . Weapon 22 | . . . . . 1 6 1 . . . . . . 2 . . 11 1 Tool/Special . | . . . . . . . . . . . . . . . . . . . Average Slot Usage (%) 71 | . 97 100 100 100 72 70 67 56 63 72 73 73 64 67 67 68 64 9 Engine 5 | . 14 14 14 14 8 6 7 2 1 . . . . . . . . . Core 7 | . . . . . 9 10 7 5 3 6 6 6 5 5 5 12 12 . Treads 11 | . 28 28 28 28 18 18 28 9 . . . . . . . . . . Flight 10 | . . . . . . . . 18 27 39 40 40 35 31 27 25 21 . Device 11 | . 11 14 14 14 9 2 . . 6 11 13 13 11 19 22 20 18 . Storage 7 | . 14 14 14 14 9 9 7 7 7 6 6 6 5 5 4 4 3 . Protection 2 | . . . . . . 6 7 2 . . . . . . . . 3 . Energy Gun 3 | . 14 14 14 14 6 1 . . . . . . . . . . . . Ballistic Gun 4 | . 14 14 14 14 6 5 . . . . . . . . . . . . Launcher 1 | . . . . . 5 4 . 3 . . . . . . . . . . Slashing Weapon 2 | . . . . . . 2 6 1 6 6 6 6 5 5 4 4 3 . Peak Build Rating 155 | 6 7 7 10 11 53 62 66 71 71 77 73 73 74 83 91 115 155 33 Average Rating 66 | 4 6 7 8 10 48 56 62 59 64 72 73 73 73 74 86 111 139 28 On Entrance 48 | . 6 7 7 10 11 51 55 63 55 67 73 73 73 74 83 89 115 1 Avg Prop Armor Cover (%) 4 | . . . . . . 6 . 18 . 1 1 . . 2 7 2 2 40 Naked Turns 19 | . . . . . . . . . . . . . . . . . 7 12 Heaviest Build 59 | 12 14 14 14 14 24 34 28 12 32 24 20 20 20 29 33 41 59 3 Greatest Support 83 | 40 40 40 40 40 40 63 83 15 20 30 30 30 30 38 38 51 76 78 Greatest Overweight (x) 9 | . . . . . . 9 . . 1 . . . . . 1 . 1 . Average Overweight (x) . | . . . . . . . . . . . . . . . . . . . Largest Inventory Capacity 40 | 8 8 8 8 8 40 40 40 40 40 40 40 40 40 40 40 40 40 5 Average Capacity 31 | 7 8 8 8 8 39 40 40 40 40 40 40 40 40 40 40 40 39 5 Most Carried 40 | 1 3 3 6 8 30 40 38 37 40 39 39 39 40 40 39 40 40 2 Average Carried 26 | . 2 2 4 6 20 35 34 36 37 37 38 39 39 37 37 37 35 . Final Capacity 40 | 8 8 8 8 8 40 40 40 40 40 40 40 40 40 40 40 40 5 5 Final Carried 40 | 1 2 3 6 8 30 39 35 37 40 38 39 39 40 38 38 38 2 1 Class Distribution -------------------- 35% | Hauler-Mutant 35% | Hauler-Sprinter 25% | Mutant 3% | Hauler-Skirmisher Dominant Class ---------------- Mutant | -10/Materials Mutant | -10/Mines Mutant | -10/Exiles Mutant | -9/Mines Hauler-Mutant | -8/Materials Hauler-Mutant | -8/Storage Hauler-Mutant | -7/Factory Hauler-Mutant | -7/Waste Hauler-Sprinter | -7/Factory Hauler-Sprinter | -6/Factory Hauler-Sprinter | -6/Lower Caves Hauler-Sprinter | -6/Lower Caves Hauler-Sprinter | -5/Factory Hauler-Sprinter | -4/Factory Hauler-Mutant | -3/Research Hauler-Sprinter | -2/Research Hauler-Sprinter | -1/Access Mutant | -1/Command Resources | -11 -10 -10 -10 -9 -8 -8 -7 -7 -7 -6 -6 -6 -5 -4 -3 -2 -1 -1 ----------- Run | Yrd Mat Min Exi Min Mat Sto Fac Was Fac Fac Low Low Fac Fac Res Res Acc Com Matter Collected 1946 | 257 25 42 . . 107 1002 . . . 306 5 . . . 140 . 44 18 Remotely . | . . . . . . . . . . . . . . . . . . . Salvage Created 2094 | . 144 120 . . 188 1122 . . 17 306 . . . . 140 . 39 18 Parts 116 | . 8 10 . . 5 69 . . 5 10 . . . . 4 . 2 3 Haulers Intercepted 2 | . . . . . . 1 . . . . . . . . 1 . . . Recyclers Shooed 5 | . . . . . . 5 . . . . . . . . . . . . Parts Field Recycled . | . . . . . . . . . . . . . . . . . . . Retrieved Matter . | . . . . . . . . . . . . . . . . . . . Parts Self-Destructed . | . . . . . . . . . . . . . . . . . . . Prevented . | . . . . . . . . . . . . . . . . . . . Parts Restored . | . . . . . . . . . . . . . . . . . . . Kills | -11 -10 -10 -10 -9 -8 -8 -7 -7 -7 -6 -6 -6 -5 -4 -3 -2 -1 -1 ------- Run | Yrd Mat Min Exi Min Mat Sto Fac Was Fac Fac Low Low Fac Fac Res Res Acc Com Combat Hostiles Destroyed 36 | . 1 6 . . 2 27 . . . . . . . . . . . . Guns 14 | . 1 6 . . . 7 . . . . . . . . . . . . Cannons 2 | . . . . . . 2 . . . . . . . . . . . . AOE 19 | . . . . . 2 17 . . . . . . . . . . . . Classes Destroyed 14 | . 2 2 . . 2 7 . . 1 . . . . . . . . . Worker 7 | . . 1 . . . 3 . . . . . . . . 2 . . 1 Builder 1 | . . . . . . 1 . . . . . . . . . . . . Tunneler 1 | . . . . . 1 . . . . . . . . . . . . . Hauler 2 | . . . . . . 1 . . . . . . . . 1 . . . Recycler 8 | . 1 . . . 2 3 . . . 2 . . . . . . . . Operator 1 | . . . . . . . . . 1 . . . . . . . . . Watcher 2 | . . . . . . 1 . . . . . . . . . . 1 . Swarmer 12 | . . 6 . . . 6 . . . . . . . . . . . . Grunt 13 | . 1 . . . 1 11 . . . . . . . . . . . . Brawler 3 | . . . . . . 3 . . . . . . . . . . . . Duelist 1 | . . . . . . 1 . . . . . . . . . . . . Protector 2 | . . . . . . 2 . . . . . . . . . . . . Sentry 4 | . . . . . . 4 . . . . . . . . . . . . Hunter 1 | . . . . . 1 . . . . . . . . . . . . . Best Kill Streak 11 | . 2 4 . . 3 11 . . 1 1 . . . . 1 . 1 1 Combat Bots Only 10 | . 1 3 . . 1 10 . . . . . . . . . . . . Max Kills in Single Turn 3 | . 1 1 . . 2 3 . . 1 1 . . . . 1 . 1 1 Gunslinging . | . . . . . . . . . . . . . . . . . . . Exploded 3 | . . . . . 1 3 . . . . . . . . . . . . Melee . | . . . . . . . . . . . . . . . . . . . Uniques/NPCs Destroyed . | . . . . . . . . . . . . . . . . . . . Combat | -11 -10 -10 -10 -9 -8 -8 -7 -7 -7 -6 -6 -6 -5 -4 -3 -2 -1 -1 -------- Run | Yrd Mat Min Exi Min Mat Sto Fac Was Fac Fac Low Low Fac Fac Res Res Acc Com Hostile Shots Fired 550 | . 1 24 . . 12 97 . 1 45 1 10 1 . 6 11 2 334 5 Missed 220 | . . 3 . . 5 19 . . 27 . 6 1 . 4 8 2 144 1 Hits 330 | . 1 21 . . 7 78 . 1 18 1 4 . . 2 3 . 190 4 Melee 2 | . . . . . . 1 . 1 . . . . . . . . . . Projectile 328 | . 1 21 . . 7 77 . . 18 1 4 . . 2 3 . 190 4 Critical Strikes 15 | . . . . . 1 2 . 1 . . . . . . . . 10 1 Damage Taken 6161 | . 46 206 . . 145 1417 . 39 238 12 64 . . 116 132 . 3652 94 Core 1997 | . 17 33 . . 4 211 . . 88 . 23 . . . . . 1599 22 Absorbed by Shields . | . . . . . . . . . . . . . . . . . . . Core Remaining (%) 91 | 100 . . . 80 . 60 . . 87 . . 97 100 100 100 100 . . Volleys Fired 99 | . 4 14 . . 6 73 . . 1 . . . . . . . 1 . Largest 2 | . 2 2 . . 2 2 . . 1 . . . . . . . 1 . Hottest 83 | . 60 60 . . 63 83 . . 36 . . . . . . . 46 . Shots Fired 164 | . 8 28 . . 12 114 . . 1 . . . . . . . 1 . Gun 106 | . 8 28 . . 4 66 . . . . . . . . . . . . Cannon 23 | . . . . . . 23 . . . . . . . . . . . . Launcher 35 | . . . . . 8 25 . . 1 . . . . . . . 1 . Special . | . . . . . . . . . . . . . . . . . . . Kinetic 83 | . 4 14 . . 2 63 . . . . . . . . . . . . Thermal 8 | . . . . . . 8 . . . . . . . . . . . . Explosive 31 | . . . . . 8 21 . . 1 . . . . . . . 1 . Electromagnetic 42 | . 4 14 . . 2 22 . . . . . . . . . . . . Robot Hit Streak 9 | . 2 4 . . 4 9 . . . . . . . . . . . . Robot Miss Streak 6 | . 1 4 . . 3 6 . . . . . . . . . . . . Penetration Max . | . . . . . . . . . . . . . . . . . . . Secondary Targets 1 | . . . . . . 1 . . . . . . . . . . . . Max Gunslinging Chain 1 | . . . . . . 1 . . . . . . . . . . . . Shots Hit Robots 100 | . 4 13 . . 5 66 . . . 2 . . . . 8 . 1 1 Core Hits 89 | . 3 9 . . 7 62 . . 1 1 . . . . 4 . 1 1 Critical Kills . | . . . . . . . . . . . . . . . . . . . Critical Parts Destroyed 1 | . . . . . . 1 . . . . . . . . . . . . Critical Strikes 3 | . . . . . . 3 . . . . . . . . . . . . Burn 1 | . . . . . . 1 . . . . . . . . . . . . Destroy 1 | . . . . . . 1 . . . . . . . . . . . . Blast 1 | . . . . . . 1 . . . . . . . . . . . . Melee Attacks 172 | . . . . . . 14 4 . 18 5 . . . 8 22 21 78 2 Impact . | . . . . . . . . . . . . . . . . . . . Slashing 170 | . . . . . . 14 4 . 18 5 . . . 8 22 21 78 . Piercing 2 | . . . . . . . . . . . . . . . . . . 2 Sneak Attacks 7 | . . . . . . . . . . 2 . . . . 3 . 1 1 Combat Hostiles . | . . . . . . . . . . . . . . . . . . . Follow-up Attacks . | . . . . . . . . . . . . . . . . . . . Damage Inflicted 4897 | . 53 247 . 1 384 3281 . . 38 179 . . . . 385 . 207 122 Guns 1207 | . 53 168 . . 10 976 . . . . . . . . . . . . Cannons 227 | . . . . . . 227 . . . . . . . . . . . . Explosions 2681 | . . 77 . . 368 2078 . . 38 . . . . . . . 120 . Melee 765 | . . . . . . . . . . 179 . . . . 385 . 84 117 Ramming 17 | . . 2 . 1 6 . . . . . . . . . . . 3 5 Kinetic 965 | . 38 94 . . 10 823 . . . . . . . . . . . . Thermal 249 | . . 77 . . . 172 . . . . . . . . . . . . Explosive 2207 | . . . . . 368 1681 . . 38 . . . . . . . 120 . Electromagnetic 694 | . 15 74 . . . 605 . . . . . . . . . . . . Impact . | . . . . . . . . . . . . . . . . . . . Slashing 648 | . . . . . . . . . . 179 . . . . 385 . 84 . Piercing 117 | . . . . . . . . . . . . . . . . . . 117 Highest Corruption 12 | . . . . . . 2 . 10 10 . . . . . . . 11 12 Average Corruption 4 | . . . . . . 1 . 10 10 . . . . . . . 3 11 Corruption Purged . | . . . . . . . . . . . . . . . . . . . Corruption Blocked . | . . . . . . . . . . . . . . . . . . . Effects 67 | . . . . . . 14 . 4 12 . . . . . . . 24 13 Message Errors 12 | . . . . . . 3 . 1 1 . . . . . . . 4 3 Matter Fused 14 | . . . . . . 4 . . 1 . . . . . . . 5 4 Heat Flow Errors 8 | . . . . . . 1 . 1 3 . . . . . . . 2 1 Energy Discharges 9 | . . . . . . 1 . . 2 . . . . . . . 5 1 Parts Rejected 2 | . . . . . . 1 . . 1 . . . . . . . . . Data Loss (minor) 10 | . . . . . . . . . 2 . . . . . . . 6 2 Data Loss (major) 3 | . . . . . . . . . 1 . . . . . . . 2 . Misfires 3 | . . . . . . 3 . . . . . . . . . . . . Alerts 2 | . . . . . . 1 . . . . . . . . . . . 1 Misdirections 4 | . . . . . . . . 2 1 . . . . . . . . 1 Overload Shots . | . . . . . . . . . . . . . . . . . . . Overflow Damage 164 | . . . . . 35 23 . . . 58 . . . . 36 . 12 . Projectiles 9 | . . . . . . 9 . . . . . . . . . . . . Explosions 61 | . . . . . 35 14 . . . . . . . . . . 12 . Melee 94 | . . . . . . . . . . 58 . . . . 36 . . . Knockbacks 1 | . . . . . . 1 . . . . . . . . . . . . Impact . | . . . . . . . . . . . . . . . . . . . Kinetic 1 | . . . . . . 1 . . . . . . . . . . . . Secondary . | . . . . . . . . . . . . . . . . . . . Self-Inflicted Damage 392 | . . 36 . . 12 297 . . . . . . . . . . 47 . Shots 15 | . . 1 . . 1 12 . . . . . . . . . . 1 . Rammed 4 | . . 1 . 1 1 . . . . . . . . . . . 1 . Targets Rammed 6 | . . 1 . 1 2 . . . . . . . . . . . 1 1 Kicked 1 | . . . . . . . . . . . . . . . . . . 1 Crushed 1 | . . . . . 1 . . . . . . . . . . . . . Highest Temperature 388 | . 6 12 . . 36 388 . 251 226 27 148 60 21 50 55 312 320 200 Average Temperature 86 | . 6 12 . . 13 99 . 134 90 14 69 36 9 10 18 80 100 100 Received Heat Transfer 522 | . 6 . . . 33 450 . . 21 . . . . 12 . . . . Effects 5 | . . . . . . 2 . . . . . . . . . . 3 . Shutdowns 2 | . . . . . . 1 . . . . . . . . . . 1 . Energy Bleed 1 | . . . . . . . . . . . . . . . . . 1 . Interference 2 | . . . . . . 1 . . . . . . . . . . 1 . Siege Activations . | . . . . . . . . . . . . . . . . . . . Martial Activations . | . . . . . . . . . . . . . . . . . . . Shielding Activations . | . . . . . . . . . . . . . . . . . . . Robots Disrupted . | . . . . . . . . . . . . . . . . . . . Combat Hostiles . | . . . . . . . . . . . . . . . . . . . Robots Corrupted 2 | . . . . . . 2 . . . . . . . . . . . . Combat Hostiles 1 | . . . . . . 1 . . . . . . . . . . . . Parts Fried 4 | . . . . . . 4 . . . . . . . . . . . . Impact Corruptions . | . . . . . . . . . . . . . . . . . . . Robots Melted . | . . . . . . . . . . . . . . . . . . . Combat Hostiles . | . . . . . . . . . . . . . . . . . . . Parts Melted 2 | . . . . . . 2 . . . . . . . . . . . . Heat Transferred 522 | . . 150 . . . 372 . . . . . . . . . . . . Parts Sabotaged . | . . . . . . . . . . . . . . . . . . . Parts Stolen . | . . . . . . . . . . . . . . . . . . . Parts Stripped . | . . . . . . . . . . . . . . . . . . . Power Chain Reactions 2 | . . 1 . . . 1 . . . . . . . . . . . . Alert | -11 -10 -10 -10 -9 -8 -8 -7 -7 -7 -6 -6 -6 -5 -4 -3 -2 -1 -1 ------- Run | Yrd Mat Min Exi Min Mat Sto Fac Was Fac Fac Low Low Fac Fac Res Res Acc Com Maximum Alert Level 1 | . . . . . . 1 . . . . . . . . . . . . Low Security (%) 95 | 100 100 100 . 100 100 80 100 100 100 100 . . 100 100 100 100 100 100 Level 1 4 | . . . . . . 19 . . . . . . . . . . . . Level 2 . | . . . . . . . . . . . . . . . . . . . Level 3 . | . . . . . . . . . . . . . . . . . . . Level 4 . | . . . . . . . . . . . . . . . . . . . Level 5 . | . . . . . . . . . . . . . . . . . . . High Security . | . . . . . . . . . . . . . . . . . . . Max Security . | . . . . . . . . . . . . . . . . . . . Peak Influence 309 | . 30 70 . . 126 309 136 22 138 51 . . 35 31 34 9 34 5 Initial 136 | . . . . . . 22 136 22 . 42 . . 35 16 10 . . . Average 31 | . 3 27 . . 30 78 100 10 73 38 . . 35 6 6 1 2 . Influence Increases 2374 | . 40 150 . . 248 1038 17 . 255 41 105 . . 75 80 51 266 8 Destroy 0b10 Robot/C 800 | . 20 120 . . 140 520 . . . . . . . . . . . . Destroy 0b10 Robot/NC 120 | . 5 5 . . 15 55 . . 5 10 . . . . 15 . 5 5 Destroy Leader 178 | . 10 20 . . 30 114 . . . . . . . . 2 . 2 . Allied During Kill 31 | . . . . . 29 2 . . . . . . . . . . . . Successful Hack 195 | . 5 . . . . 27 . . 22 28 . . . 31 24 . 58 . Disable Machine 150 | . . . . . . 105 15 . 15 . . . . . 15 . . . Destroy Structure 420 | . . 5 . . 34 95 2 . 18 3 . . . 14 24 51 171 3 Partial Spotted 75 | . . . . . . 30 . . . . . . . 30 . . 15 . Lose Combat Pursuer 405 | . . . . . . 90 . . 195 . 105 . . . . . 15 . Influence Decreases 2374 | . 40 150 . . 195 790 255 63 169 94 68 14 21 89 101 51 266 8 Entered New Map 359 | . . . . . . 31 165 41 . 44 13 14 21 19 11 . . . Time Decay 1513 | . 40 150 . . 117 401 90 12 159 50 55 . . 70 83 51 227 8 Lost Part 136 | . . . . . . 70 . 10 10 . . . . . 7 . 39 . Lost Ally 100 | . . . . . 60 40 . . . . . . . . . . . . Purge Threat 266 | . . . . . 18 248 . . . . . . . . . . . . Squads Dispatched 24 | . 1 . . . 2 3 . . 2 . . . . 2 1 3 10 . Investigation 4 | . 1 . . . 2 . . . . . . . . . . 1 . . Extermination 13 | . . . . . . . . . 1 . . . . 2 1 1 8 . Reinforcement 5 | . . . . . . 1 . . 1 . . . . . . 1 2 . Assault 2 | . . . . . . 2 . . . . . . . . . . . . Garrison . | . . . . . . . . . . . . . . . . . . . Intercept . | . . . . . . . . . . . . . . . . . . . Searches Triggered . | . . . . . . . . . . . . . . . . . . . Construction Impeded . | . . . . . . . . . . . . . . . . . . . Haulers Reinforced . | . . . . . . . . . . . . . . . . . . . Active Scanning Responses . | . . . . . . . . . . . . . . . . . . . Cargo Convoy Interrupts . | . . . . . . . . . . . . . . . . . . . Stealth | -11 -10 -10 -10 -9 -8 -8 -7 -7 -7 -6 -6 -6 -5 -4 -3 -2 -1 -1 --------- Run | Yrd Mat Min Exi Min Mat Sto Fac Was Fac Fac Low Low Fac Fac Res Res Acc Com Distress Signals 14 | . . . . . 2 2 . . 2 . . . . 1 1 2 3 1 Communications Jammed . | . . . . . . . . . . . . . . . . . . . Distress Signals . | . . . . . . . . . . . . . . . . . . . Times Spotted 210 | . 1 5 . . 15 37 1 6 16 3 4 3 . 6 15 3 91 4 Peak Tracking Total 13 | . 1 3 . . 5 10 1 6 10 3 9 3 . 5 12 3 13 3 Tactical Retreats 37 | . . 1 . . 1 5 . . 7 . 3 . . 1 2 2 15 . ECM-based Alert Blocks 98 | . . 3 . . 3 . . . . . . . . 2 7 3 80 . Traps | -11 -10 -10 -10 -9 -8 -8 -7 -7 -7 -6 -6 -6 -5 -4 -3 -2 -1 -1 ------- Run | Yrd Mat Min Exi Min Mat Sto Fac Was Fac Fac Low Low Fac Fac Res Res Acc Com Traps Triggered 14 | . 2 . . . 1 2 1 . 3 1 . . . 1 1 1 . 1 Indirectly . | . . . . . . . . . . . . . . . . . . . Trap Hack Attempts . | . . . . . . . . . . . . . . . . . . . Triggered . | . . . . . . . . . . . . . . . . . . . Disarmed . | . . . . . . . . . . . . . . . . . . . Reprogrammed . | . . . . . . . . . . . . . . . . . . . Reused . | . . . . . . . . . . . . . . . . . . . Traps Extracted . | . . . . . . . . . . . . . . . . . . . Installed . | . . . . . . . . . . . . . . . . . . . Triggered . | . . . . . . . . . . . . . . . . . . . Machines | -11 -10 -10 -10 -9 -8 -8 -7 -7 -7 -6 -6 -6 -5 -4 -3 -2 -1 -1 ---------- Run | Yrd Mat Min Exi Min Mat Sto Fac Was Fac Fac Low Low Fac Fac Res Res Acc Com Machines Disabled 10 | . . . . . . 7 1 . 1 . . . . . 1 . . . Max in Single Turn 1 | . . . . . . 1 1 . 1 . . . . . 1 . . . Machines Repaired . | . . . . . . . . . . . . . . . . . . . Machines Dismantled . | . . . . . . . . . . . . . . . . . . . Machines Sabotaged . | . . . . . . . . . . . . . . . . . . . Overloaded Fab Kills . | . . . . . . . . . . . . . . . . . . . Hacking | -11 -10 -10 -10 -9 -8 -8 -7 -7 -7 -6 -6 -6 -5 -4 -3 -2 -1 -1 --------- Run | Yrd Mat Min Exi Min Mat Sto Fac Was Fac Fac Low Low Fac Fac Res Res Acc Com Machines Accessed 48 | . 1 1 1 . 3 8 1 . 6 5 . . . 5 5 3 8 1 Terminals 32 | . 1 1 . . 2 8 1 . 3 3 . . . 3 2 1 6 1 Fabricators . | . . . . . . . . . . . . . . . . . . . Repair Stations . | . . . . . . . . . . . . . . . . . . . Recycling Units 1 | . . . . . . . . . . . . . . . 1 . . . Scanalyzers 10 | . . . . . 1 . . . 2 1 . . . 1 1 2 2 . Garrison Access 4 | . . . . . . . . . 1 1 . . . 1 1 . . . Total Hacks 110 | . 1 1 1 . 12 24 1 . 19 13 . . . 12 6 9 10 1 Successful 51 | . 1 1 1 . 7 12 . . 9 8 . . . 5 2 2 3 . Failed 57 | . . . . . 4 12 1 . 10 4 . . . 7 4 7 7 1 Catastrophic 13 | . . . . . . 3 . . 4 1 . . . 3 1 . 1 . Database Lockouts 2 | . . . . . 1 . . . . 1 . . . . . . . . Manual 70 | . 1 1 1 . 7 22 1 . 10 5 . . . 9 2 5 6 . Terminals 74 | . 1 1 . . 7 24 1 . 11 6 . . . 9 2 5 6 1 Fabricators . | . . . . . . . . . . . . . . . . . . . Repair Stations . | . . . . . . . . . . . . . . . . . . . Recycling Units 1 | . . . . . . . . . . . . . . . 1 . . . Scanalyzers 27 | . . . . . 5 . . . 6 6 . . . 1 1 4 4 . Garrison Access 7 | . . . . . . . . . 2 1 . . . 2 2 . . . Terminal Hacks 10 | . . . 1 . 1 5 . . 2 . . . . 1 . . . . Open Door 2 | . . . . . . 2 . . . . . . . . . . . . Terminal Index 2 | . . . . . . 1 . . 1 . . . . . . . . . Unreport Threat 4 | . . . . . 1 2 . . . . . . . 1 . . . . Hauler Manifests 1 | . . . . . . . . . 1 . . . . . . . . . Proto ID Catalog 1 | . . . 1 . . . . . . . . . . . . . . . Fabricator Hacks . | . . . . . . . . . . . . . . . . . . . Repair Station Hacks . | . . . . . . . . . . . . . . . . . . . Recycling Unit Hacks 1 | . . . . . . . . . . . . . . . 1 . . . Retrieve Matter 1 | . . . . . . . . . . . . . . . 1 . . . Scanalyzer 16 | . . . . . 4 . . . 3 5 . . . 1 . 1 2 . Retrieve Study 16 | . . . . . 4 . . . 3 5 . . . 1 . 1 2 . Garrison Access Hacks . | . . . . . . . . . . . . . . . . . . . Unauthorized Hacks 24 | . 1 1 . . 2 7 . . 4 3 . . . 3 1 1 1 . Terminals 24 | . 1 1 . . 2 7 . . 4 3 . . . 3 1 1 1 . Assimilate 2 | . . . . . . 1 . . 1 . . . . . . . . . Botnet 22 | . 1 1 . . 2 6 . . 3 3 . . . 3 1 1 1 . Fabricators . | . . . . . . . . . . . . . . . . . . . Repair Stations . | . . . . . . . . . . . . . . . . . . . Recycling Units . | . . . . . . . . . . . . . . . . . . . Scanalyzers . | . . . . . . . . . . . . . . . . . . . Garrison Access . | . . . . . . . . . . . . . . . . . . . Data Cores Recovered . | . . . . . . . . . . . . . . . . . . . Used . | . . . . . . . . . . . . . . . . . . . Hacking Detections 42 | . . . . . 3 8 1 . 6 5 . . . 5 3 3 7 1 Full Trace Events 2 | . . . . . 2 . . . . . . . . . . . . . Feedback Events . | . . . . . . . . . . . . . . . . . . . Feedback Blocked . | . . . . . . . . . . . . . . . . . . . Robot Schematics Acquired . | . . . . . . . . . . . . . . . . . . . Robots Built . | . . . . . . . . . . . . . . . . . . . Authchips . | . . . . . . . . . . . . . . . . . . . Time . | . . . . . . . . . . . . . . . . . . . Total Robot Build Rating . | . . . . . . . . . . . . . . . . . . . Part Schematics Acquired . | . . . . . . . . . . . . . . . . . . . Parts Built . | . . . . . . . . . . . . . . . . . . . Authchips . | . . . . . . . . . . . . . . . . . . . Time . | . . . . . . . . . . . . . . . . . . . Total Part Build Rating . | . . . . . . . . . . . . . . . . . . . Part Studies Acquired 16 | . . . . . 4 . . . 3 5 . . . 1 . 1 2 . Parts Repaired . | . . . . . . . . . . . . . . . . . . . Time . | . . . . . . . . . . . . . . . . . . . Parts Recycled . | . . . . . . . . . . . . . . . . . . . Recycled Matter . | . . . . . . . . . . . . . . . . . . . Retrieved Matter . | . . . . . . . . . . . . . . . . . . . Retrieved Components . | . . . . . . . . . . . . . . . . . . . Parts Scanalyzed . | . . . . . . . . . . . . . . . . . . . Part Schematics Acquired . | . . . . . . . . . . . . . . . . . . . Parts Damaged . | . . . . . . . . . . . . . . . . . . . Bothacking | -11 -10 -10 -10 -9 -8 -8 -7 -7 -7 -6 -6 -6 -5 -4 -3 -2 -1 -1 ------------ Run | Yrd Mat Min Exi Min Mat Sto Fac Was Fac Fac Low Low Fac Fac Res Res Acc Com Used RIF Installer . | . . . . . . . . . . . . . . . . . . . Robots Hacked . | . . . . . . . . . . . . . . . . . . . Non-combat . | . . . . . . . . . . . . . . . . . . . Combat . | . . . . . . . . . . . . . . . . . . . Robot Hacks Applied . | . . . . . . . . . . . . . . . . . . . Relay Couplers Released . | . . . . . . . . . . . . . . . . . . . Fabnet Peak Effective % . | . . . . . . . . . . . . . . . . . . . Robots Rewired . | . . . . . . . . . . . . . . . . . . . Allies Hacked . | . . . . . . . . . . . . . . . . . . . Hacks Repelled . | . . . . . . . . . . . . . . . . . . . Allies | -11 -10 -10 -10 -9 -8 -8 -7 -7 -7 -6 -6 -6 -5 -4 -3 -2 -1 -1 -------- Run | Yrd Mat Min Exi Min Mat Sto Fac Was Fac Fac Low Low Fac Fac Res Res Acc Com Total Allies 9 | . . . . 6 . 3 . . . . . . . . . . . . Largest Group 5 | . . . . 5 5 2 . . . . . . . . . . . . Highest-Rated Group 81 | . . . . 81 81 62 . . . . . . . . . . . . Highest-Rated Ally 31 | . . . . 31 31 31 . . . . . . . . . . . . Total Orders . | . . . . . . . . . . . . . . . . . . . Ally Attacks 56 | . . . . . 48 8 . . . . . . . . . . . . Total Damage 678 | . . . . . 573 105 . . . . . . . . . . . . Kills 6 | . . . . . 5 1 . . . . . . . . . . . . Allies Corrupted 1 | . . . . . . 1 . . . . . . . . . . . . Allies Melted . | . . . . . . . . . . . . . . . . . . . Intel | -11 -10 -10 -10 -9 -8 -8 -7 -7 -7 -6 -6 -6 -5 -4 -3 -2 -1 -1 ------- Run | Yrd Mat Min Exi Min Mat Sto Fac Was Fac Fac Low Low Fac Fac Res Res Acc Com Active Infowar (turns) 5778 | . 208 387 393 617 629 539 . . 79 111 182 12 13 224 401 321 1662 . Sensors 267 | . . . . . 267 . . . . . . . . . . . . . Traps 2195 | . . . . . . . . . 79 111 182 12 13 224 290 164 1120 . Cloaking 774 | . . . . . . . . . . . . . . . . . 774 . ECM 4974 | . 208 387 393 617 362 539 . . . . . . . 84 401 321 1662 . Robot Analysis Total . | . . . . . . . . . . . . . . . . . . . Derelict Logs Recovered 2 | . . . . 1 . . . . . . 1 . . . . . . . Drone Launches . | . . . . . . . . . . . . . . . . . . . Drone Recoveries . | . . . . . . . . . . . . . . . . . . . Exploration | -11 -10 -10 -10 -9 -8 -8 -7 -7 -7 -6 -6 -6 -5 -4 -3 -2 -1 -1 ------------- Run | Yrd Mat Min Exi Min Mat Sto Fac Was Fac Fac Low Low Fac Fac Res Res Acc Com Turns Passed 8205 | 72 249 387 393 617 632 1896 187 60 396 112 182 12 13 224 401 321 1689 362 Spaces Moved 9629 | 43 147 194 246 383 347 765 100 109 959 384 757 57 57 715 528 752 2806 280 Core 58 | 5 . . . . . 21 . . . . . . . . . . 9 23 Treads 2199 | 38 147 194 246 383 347 744 100 . . . . . . . . . . . Legs 257 | . . . . . . . . . . . . . . . . . . 257 Wheels . | . . . . . . . . . . . . . . . . . . . Hover . | . . . . . . . . . . . . . . . . . . . Flight 7115 | . . . . . . . . 109 959 384 757 57 57 715 528 752 2797 . Fastest Speed 20 | 50 160 160 160 160 160 160 167 29 26 20 20 20 20 20 20 22 22 50 Average Speed 62 | 147 160 160 160 160 160 183 167 39 27 22 20 20 20 22 54 23 28 107 Slowest Speed 500 | 160 160 160 160 160 160 500 167 49 98 23 23 20 20 24 103 26 115 140 Overloaded Moves . | . . . . . . . . . . . . . . . . . . . Propulsion Burnouts . | . . . . . . . . . . . . . . . . . . . Robots Hopped 14 | . . . . . . . . . . . . . 1 3 . 1 9 . Potential Cave-ins . | . . . . . . . . . . . . . . . . . . . Cave-ins Triggered . | . . . . . . . . . . . . . . . . . . . Exploration Rate (%) 34 | 4 34 32 61 80 24 85 5 86 33 15 87 9 2 23 14 18 43 9 Regions Visited 18 Branch Regions 7 Pre-discovered Areas 1 | . . . . 1 . . . . . . . . . . . . . . Known Exits Taken . | . . . . . . . . . . . . . . . . . . . Unknown Exits Taken 16 | 1 1 1 1 1 1 1 . . 1 1 1 1 1 1 1 1 1 . Scrap Searched 5 | . . 1 . 2 . . . . . . 2 . . . . . . . Spaces Dug 123 | . . . . . . 9 2 . 18 3 . . . 7 12 17 54 1 Terrain Destroyed 272 | . . 5 . . 39 111 2 . 18 3 . . . 7 12 17 57 1 Melee 123 | . . . . . . 9 2 . 18 3 . . . 7 12 17 54 1 Projectile 7 | . . . . . . 7 . . . . . . . . . . . . AOE 142 | . . 5 . . 39 95 . . . . . . . . . . 3 . Terrain Rammed . | . . . . . . . . . . . . . . . . . . . Walls Destroyed . | . . . . . . . . . . . . . . . . . . . Machines Disabled . | . . . . . . . . . . . . . . . . . . . Actions | -11 -10 -10 -10 -9 -8 -8 -7 -7 -7 -6 -6 -6 -5 -4 -3 -2 -1 -1 --------- Run | Yrd Mat Min Exi Min Mat Sto Fac Was Fac Fac Low Low Fac Fac Res Res Acc Com Total 11305 | 49 153 242 246 387 409 1112 115 125 1061 399 781 56 56 764 603 858 3550 339 Wait 1080 | . . 33 . 2 18 156 . 7 26 . 23 . . 18 48 76 623 50 Move 9587 | 42 146 193 245 382 346 764 100 108 958 383 756 56 54 708 527 749 2790 280 Hop 11 | . . . . . . . . . . . . . 1 3 . 1 6 . Pick Up 143 | 1 2 1 1 2 27 48 4 . 11 3 2 . 1 10 2 3 22 3 Fast Attach 8 | 6 . . . . . . . . 1 . . . . 1 . . . . Attach 58 | . 1 . . . 3 8 4 2 10 4 . . . 7 3 4 9 3 Detach 17 | . . . . . 1 1 1 4 4 1 . . . 3 . 2 . . Swap 47 | . . . . . 5 31 1 4 1 2 . . . 1 1 . 1 . Drop 47 | . . . . . 1 17 1 . 1 1 . . . 5 . 2 19 . Fire 99 | . 4 14 . . 6 73 . . 1 . . . . . . . 1 . Melee 172 | . . . . . . 14 4 . 18 5 . . . 8 22 21 78 2 Ram 1 | . . . . . . . . . . . . . . . . . 1 . Kick 1 | . . . . . . . . . . . . . . . . . . 1 Crush 4 | . . 1 . 1 2 . . . . . . . . . . . . . Escape Stasis 30 | . . . . . . . . . 30 . . . . . . . . . Rewire . | . . . . . . . . . . . . . . . . . . . Trap . | . . . . . . . . . . . . . . . . . . . Miscellaneous . | . . . . . . . . . . . . . . . . . . . Route ------- -11/Scrapyard -10/Materials -10/Mines -10/Exiles -9/Mines -8/Materials -8/Storage -7/Factory -7/Waste -7/Factory -6/Factory -6/Lower Caves -6/Lower Caves -5/Factory -4/Factory -3/Research -2/Research -1/Access -1/Command History --------- Turn | Location | Event 7 | -11/Scrapyard | Discovered new exit (range 16) 73 | -11/Scrapyard | Entered Materials 290 | -10/Materials | Discovered new exit (range 16) 306 | -10/Materials | Build established: Mutant 322 | -10/Materials | Entered Mines 323 | -10/Mines | Met a Derelict bent on vengeance 701 | -10/Mines | Deemed a non-threat by the Exiles lab entrance 701 | -10/Mines | Discovered new exit (range 5) 709 | -10/Mines | Entered Exiles 746 | -10/Exiles | Met 8R-AWN 777 | -10/Exiles | Met EX-HEX 837 | -10/Exiles | Met EX-BIN 860 | -10/Exiles | Aligned with FarCom system 861 | -10/Exiles | Given EX-Vault access code 898 | -10/Exiles | Opened EX-Vault 908 | -10/Exiles | Found Lightpack 2.0 939 | -10/Exiles | Warned to stay clear of 0b10 Research branches 984 | -10/Exiles | Met EX-DEC 1086 | -10/Exiles | Discovered new exit (range 12) 1102 | -10/Exiles | Left Exiles lab with Lightpack 2.0 1102 | -10/Exiles | Entered Mines 1182 | -9/Mines | Received a Mining Laser from a helpful Derelict 1250 | -9/Mines | Found a hidden stash of uninstalled traps 1364 | -9/Mines | Assisted by bots powering up and referring to "LRC-V3" 1405 | -9/Mines | Learned location of Storage (-8) 1642 | -9/Mines | Discovered new exit (range 11) 1648 | -9/Mines | Found a damaged Exp. Sensor Array with a note attached 1652 | -9/Mines | Found Prototype Device 1719 | -9/Mines | Entered Materials 1719 | -8/Materials | Accompanied by 5 allies 1719 | -8/Materials | Evolved 4 slots: Power x1, Propulsion x1, Utility x2 1723 | -8/Materials | Identified Exp. Sensor Array 1724 | -8/Materials | Led the pair of lost Derelicts to an unsafe place 1724 | -8/Materials | Discovered new exit (range 7) 1913 | -8/Materials | Central database locked down 2218 | -8/Materials | Lost 3 allies 2295 | -8/Materials | Build established: Hauler-Mutant 2351 | -8/Materials | Entered Storage 2997 | -8/Storage | Destroyed 10 combat bots 4060 | -8/Storage | Met a pair of Derelict thieves 4145 | -8/Storage | Destroyed 9 combat bots 4164 | -8/Storage | Discovered new exit (range 15) 4247 | -8/Storage | Entered Factory 4247 | -7/Factory | Evolved 2 slots: Propulsion x1, Utility x1 4434 | -7/Factory | Sucked down chute 4434 | -7/Factory | Entered Waste 4449 | -7/Waste | EMP discharged 4449 | -7/Waste | System corruption reached 10% 4465 | -7/Waste | Spotted C-40 Crusher 4467 | -7/Waste | Spotted C-40 Crusher 4468 | -7/Waste | Spotted C-40 Crusher 4468 | -7/Waste | Spotted C-40 Crusher 4471 | -7/Waste | Crushed by Compactor (1 part destroyed, 1 dropped) 4476 | -7/Waste | Spotted C-40 Crusher 4476 | -7/Waste | Spotted C-40 Crusher 4489 | -7/Waste | Discovered new exit (range 15) 4494 | -7/Waste | Entered Factory 4773 | -7/Factory | Build established: Hauler-Sprinter 4811 | -7/Factory | Discovered new exit (range 5) 4890 | -7/Factory | Entered another Factory area 4890 | -6/Factory | Evolved 2 slots: Propulsion x2 4955 | -6/Factory | Central database locked down 5001 | -6/Factory | Discovered new exit (range 8) 5002 | -6/Factory | Entered Lower Caves 5032 | -6/Lower Caves | Learned Factory garrison access intel 5054 | -6/Lower Caves | Spotted B-75 Beast 5130 | -6/Lower Caves | Attracted the attention of an 0b10 outpost 5144 | -6/Lower Caves | Encountered a Warlord checkpoint 5166 | -6/Lower Caves | Discovered new exit (range 3) 5184 | -6/Lower Caves | Entered another Lower Caves area 5193 | -6/Lower Caves | Discovered new exit (range 14) 5196 | -6/Lower Caves | Entered Factory 5196 | -5/Factory | Evolved 2 slots: Power x1, Propulsion x1 5197 | -5/Factory | Loaded intel: 4 garrison access locations 5208 | -5/Factory | Discovered new exit (range 6) 5209 | -5/Factory | Entered another Factory area 5209 | -4/Factory | Evolved 2 slots: Utility x2 5430 | -4/Factory | Discovered new exit (range 5) 5433 | -4/Factory | Entered Research 5433 | -3/Research | Evolved 2 slots: Power x1, Utility x1 5830 | -3/Research | Discovered new exit (range 15) 5834 | -3/Research | Entered another Research area 5834 | -2/Research | Evolved 2 slots: Power x1, Propulsion x1 5876 | -2/Research | Spotted B-90 Cyclops 6125 | -2/Research | Discovered new exit (range 16) 6155 | -2/Research | Entered Access 6155 | -1/Access | Evolved 2 slots: Propulsion x1, Utility x1 7201 | -1/Access | Spotted B-99 Colossus 7494 | -1/Access | Lost 6 parts (2p3n1u) 7744 | -1/Access | System corruption reached 10% 7811 | -1/Access | Spotted B-99 Colossus 7814 | -1/Access | Spotted B-99 Colossus 7835 | -1/Access | Core integrity fell below 50% 7842 | -1/Access | Core integrity fell below 20% 7842 | -1/Access | Discovered new exit (range 5) 7844 | -1/Access | Entered Command 7868 | -1/Command | Lost 18 parts (3p7n5u3w) 8128 | -1/Command | Build established: Mutant 8206 | -1/Command | Destroyed by P-80 Master with Gamma Rifle Last Messages --------------- 08018_ System corrupted: Matter fused (-9). 08038_ System corrupted: Component data lost. 08042_ Triggered Blade Trap. 08042_ Massive razor-sharp blades shoot up from within the floor. 08049_ Acquired Adv. VSS Leg+. 08056_ XQFFYDH|>HJENFVZLXKDUJNK:KTZMM AW1> 08058_ Connecting with Terminal... 08058_ Current location identified: Command 08060_ Acquired Micro-nuke Launcher. 08093_ >LD